Workbook

Sheet Sheet1 (2)
A1: 鲤城区2022年秋季学生资助汇总审批表
A3: 制表单位 ：鲤城区教育局 | H3: 单位：元
A4: 学段 | B4: 资助项目 | C4: 资助标准 (生/学期) | F4: 人数 | H4: 金额 | I4: 审批依据
A6: 学前教育 | B6: 保教费补助 | C6: 一档 | E6: 1000 | F6: 212 | H6: =E6*F6 -> 212000 | I6: 闽财教[2014]26号
C7: 二档 | E7: 500 | F7: 10 | H7: =E7*F7 -> 5000
C8: 合计 | F8: =SUM(F6:F7) -> 222 | H8: =SUM(H6:H7) -> 217000
A9: 义务教育 | B9: 生活补助 | C9: 初中 | D9: 寄宿 | E9: 625 | F9: 0 | H9: =F9*E9 -> 0 | I9: 闽财教[2019]23
D10: 非寄宿 | E10: 312.5 | F10: 300 | H10: =F10*E10 -> 93750
D11: 初中小计 | F11: =SUM(F9:F10) -> 300 | H11: =SUM(H9:H10) -> 93750
C12: 小学 | D12: 寄宿 | E12: 500 | F12: 1 | H12: =E12*F12 -> 500
D13: 非寄宿 | E13: 250 | F13: 769 | H13: =E13*F13 -> 192250
D14: 小学小计 | F14: =SUM(F12:F13) -> 770 | H14: =SUM(H12:H13) -> 192750
C15: 合计 | F15: =F14+F11 -> 1070 | H15: =H11+H14 -> 286500
A16: 高中 | B16: 助学金 | C16: 一档 | E16: 1500 | F16: 41 | H16: =F16*E16 -> 61500 | I16: 闽财教[2017] 47号
C17: 二档 | E17: 850 | F17: 37 | H17: =F17*E17 -> 31450
C18: 合计 | F18: =SUM(F16:F17) -> 78 | H18: =SUM(H16:H17) -> 92950
B19: 免学费 | E19: 800 | F19: 41 | H19: =E19*F19 -> 32800 | I19: 闽财（教）指[2016]113号
A20: 中职 | B20: 助学金 | E20: 1000 | F20: 30 | H20: =E20*F20 -> 30000 | I20: 闽财（教）指[2015]169号
B21: 免学费 | E21: 1050 | F21: 1335 | H21: 1401750 | I21: 闽财教[2012]135号
A22: 特教 | B22: 寄午（200元、生/ 月） | H22: =G24*150 -> 87750 | I22: 闽财指[2022]91号
B23: 9月 | C23: 10月 | D23: 11月 | E23: 12月 | F23: 2023-01-01 | G23: 人数合计
B24: 114 | C24: 117 | D24: 118 | E24: 118 | F24: 118 | G24: =SUM(B24:F24) -> 585
A25: 合计： | B25: =H25 -> 2148750 | H25: =H8+H15+H18+H19+H20+H21+H22 -> 2148750
A26: 教育局审批意见 | E26: 财政局审批意见
A28: 制表人: | D28: 审核人： | H28: 年 月 日

Sheet Sheet2

Sheet Sheet3
